fUSD/lending_fUSD_20250929
["ID","MTS","AMOUNT","RATE_DAILY","PERIOD"]
[388376342,1759135838240,-500.0,0.00018478,2]
[388376343,1759135838250,-321.95756833,0.00018478,2]
[388376344,1759135838265,-178.04243167,0.00018478,2]
[388376345,1759135838282,-500.0,0.00018478,2]
[388376346,1759135838293,-265.41111061,0.00018478,2]
[388376347,1759135838304,-500.0,0.00018478,2]
[388376348,1759135838315,-500.0,0.00018478,2]
[388376349,1759135838326,-500.0,0.00018478,2]
[388376350,1759135838336,-500.0,0.00018478,2]
[388376351,1759135838347,-500.0,0.00018478,2]
[388376352,1759135838357,-500.0,0.00018478,2]
[388376353,1759135838367,-500.0,0.00018478,2]
[388376354,1759135838377,-475.34645772,0.00018478,2]
[388376355,1759135838389,-24.65354228,0.00018478,2]
[388376356,1759135838400,-500.0,0.00018478,2]
[388376357,1759135838411,-500.0,0.00018478,2]
[388376358,1759135838421,-500.0,0.00018478,2]
[388376359,1759135838430,-500.0,0.00018478,2]
[388376360,1759135838440,-500.0,0.00018478,2]
[388376361,1759135838451,-6537.14645774,0.0001848,2]
[388376362,1759135838472,-50701.5,0.0001848,2]
[388376363,1759135838485,-999.92,0.0001848,2]
[388376364,1759135839524,-736.96126968,0.0001848,2]
[388376365,1759135839537,-3934.3618996,0.0001848,2]
[388376366,1759135839556,-554.84992242,0.0001848,2]
[388376367,1759135839568,-227.0,0.0001848,2]
[388376368,1759135839578,-500.0,0.0001848,2]
[388376369,1759135839589,-500.0,0.0001848,2]
[388376370,1759135839599,-500.0,0.0001848,2]
[388376371,1759135839610,-500.0,0.0001848,2]
[388376372,1759135839620,-322.6107,0.00018492,2]
[388376373,1759135839631,-2529.03937758,0.00018492,2]
[388376374,1759135839734,-6470.96062242,0.00018492,2]
[388376375,1759135839745,-239.84119403,0.00018492,2]
[388376376,1759135839756,-4579.00756,0.000185,2]
[388376377,1759135839766,-4579.00756,0.0001853,2]
[388376378,1759135839777,-4579.00756,0.0001856,2]
[388376379,1759135839787,-171.9,0.00018566,2]
[388376380,1759135839798,-500.0,0.00018583,2]
[388376381,1759135839808,-4579.00756,0.0001859,2]
[388376383,1759135839820,-807.78861135,0.00018607,2]
[388376385,1759135839831,-67566.60608575,0.00018612,2]
[388376386,1759135839842,-1941.9868313,0.00018612,2]
[388376387,1759135839853,-150.0,0.0001864,2]
[388376388,1759135839863,-200.0,0.00018663,2]
[388376389,1759135839873,-200.0,0.00018663,2]
[388376390,1759135839884,-200.0,0.00018663,2]
[388376391,1759135839894,-151.0,0.00018663,2]
[388376392,1759135839905,-151.0,0.00018663,2]
[388376393,1759135839919,-1230.0,0.00018663,2]
[388376394,1759135839929,-151.0,0.00018663,2]
[388376395,1759135839940,-151.0,0.00018663,2]
[388376396,1759135839950,-1230.0,0.00018663,2]
[388376397,1759135839961,-151.0,0.00018663,2]
[388376398,1759135839971,-151.0,0.00018663,2]
[388376400,1759135839982,-151.0,0.00018663,2]
[388376401,1759135839992,-151.0,0.00018663,2]
[388376402,1759135840002,-152.0,0.00018663,2]
[388376403,1759135840012,-4579.00756,0.00018663,2]
[388376404,1759135840022,-4230.08459587,0.00018663,2]
[388376407,1759135842653,-348.92296413,0.00018663,2]
[388376408,1759135842664,-200.0,0.00018663,2]
[388376409,1759135842674,-151.0,0.00018663,2]
[388376410,1759135842685,-1230.0,0.00018663,2]
[388376411,1759135842695,-151.0,0.00018663,2]
[388376412,1759135842705,-150.0,0.00018667,2]
[388376413,1759135842715,-1000.0,0.0001874,2]
[388376414,1759135842726,-1941.98683126,0.00018755,2]
[388376415,1759135842736,-1425.0,0.00018764,2]
[388376416,1759135842746,-200.0,0.0001885,2]
[388376417,1759135842756,-200.0,0.0001885,2]
[388376418,1759135842766,-200.0,0.0001885,2]
[388376419,1759135842776,-200.0,0.0001885,2]
[388376420,1759135842785,-1000.0,0.00018895,2]
[388376421,1759135842795,-1941.98683126,0.00018898,2]
[388376422,1759135842805,-1000.0,0.00018899,2]
[388376423,1759135842815,-170.43,0.00018945,2]
[388376424,1759135842825,-1425.0,0.00018986,2]
[388376425,1759135842835,-500.0,0.00018986,2]
[388376426,1759135842846,-500.0,0.00018992,2]
[388376427,1759135842856,-500.0,0.00018992,2]
[388376428,1759135842866,-500.0,0.00018992,2]
[388376429,1759135842876,-19501.69942639,0.00019,2]
[388376430,1759135842887,-9505.0,0.00019,2]
[388376431,1759135842899,-150.0,0.00019,2]
[388376432,1759135842910,-200.0,0.00019,6]
[388376433,1759135842921,-1500.0,0.00019013,2]
[388376434,1759135842931,-2500.0,0.0001902,3]
[388376435,1759135842941,-500.0,0.0001902,2]
[388376436,1759135842951,-500.0,0.00019024,2]
[388376437,1759135842961,-1000.0,0.00019028,2]
[388376438,1759135842971,-1000.0,0.00019028,2]
[388376439,1759135842980,-1000.0,0.00019028,2]
[388376440,1759135842990,-249.1015785,0.00019028,2]
[388376441,1759135843000,-2500.0,0.00019028,3]
[388376442,1759135843012,-168.0,0.00019036,2]
[388376443,1759135843022,-2500.0,0.00019037,3]
[388376445,1759135843031,-200.0,0.00019038,2]
[388376446,1759135843041,-200.0,0.00019038,2]
[388376447,1759135843051,-200.0,0.00019038,2]
[388376448,1759135843061,-200.0,0.00019038,2]
[388376450,1759135843082,-1941.98683126,0.00019041,2]
[388376451,1759135843098,-2500.0,0.00019046,3]
[388376452,1759135843109,-2500.0,0.00019055,3]
[388376453,1759135843120,-2500.0,0.00019064,3]
[388376454,1759135843130,-2500.0,0.00019072,3]
[388376455,1759135843140,-1000.0,0.00019073,2]
[388376456,1759135843151,-398.1491902,0.00019078,2]
[388376457,1759135843161,-2500.0,0.00019081,3]
[388376458,1759135843172,-2500.0,0.0001909,3]
[388376459,1759135843187,-2500.0,0.00019099,3]
[388376460,1759135843196,-1000.0,0.00019099,2]
[388376461,1759135843206,-1000.0,0.00019099,2]
[388376462,1759135843218,-500.0,0.000191,6]
[388376463,1759135843228,-2500.0,0.00019108,3]
[388376464,1759135843238,-1425.0,0.00019114,2]
[388376465,1759135843248,-2500.0,0.00019116,3]
[388376466,1759135843259,-2500.0,0.00019125,3]
[388376467,1759135843269,-1000.0,0.00019131,2]
[388376468,1759135843278,-2500.0,0.00019134,3]
[388376469,1759135843288,-2500.0,0.00019143,3]
[388376470,1759135843297,-2500.0,0.00019152,3]
[388376471,1759135843308,-1300.0,0.00019157,2]
[388376472,1759135843318,-10149.85234544,0.00019159,2]
[388376473,1759135843327,-2351.0,0.00019159,2]
[388376474,1759135843337,-2500.0,0.0001916,3]
[388376475,1759135843347,-2500.0,0.0001916,3]
[388376476,1759135843357,-2500.0,0.00019169,3]
[388376477,1759135843366,-2500.0,0.00019169,3]
[388376478,1759135843376,-398.14919014,0.00019169,2]
[388376479,1759135843385,-2500.0,0.00019178,3]
[388376480,1759135843394,-2500.0,0.00019178,3]
[388376481,1759135843404,-151.0,0.00019178,2]
[388376482,1759135843414,-168.0,0.00019179,2]
[388376483,1759135843424,-176.85,0.00019182,2]
[388376484,1759135843433,-1941.98683126,0.00019184,2]
[388376485,1759135843443,-150.0,0.00019186,2]
[388376486,1759135843452,-700.0,0.000192,7]
[388376487,1759135843467,-1425.0,0.00019214,2]
[388376488,1759135843478,-200.0,0.00019229,2]
[388376489,1759135843488,-200.0,0.00019229,2]
[388376490,1759135843498,-200.0,0.00019229,2]
[388376491,1759135843508,-200.0,0.00019229,2]
[388376492,1759135843518,-1000.0,0.0001924,2]
[388376493,1759135843529,-164.01454843,0.00019251,2]
[388376494,1759135843540,-398.14919014,0.00019261,2]
[388376495,1759135843550,-1000.0,0.00019278,2]
[388376496,1759135843560,-154.66,0.00019295,2]
[388376497,1759135843569,-714.763,0.00019299,2]
[388376498,1759135843579,-159.5304696,0.000193,2]
[388376499,1759135843589,-1000.0,0.000193,7]
[388376500,1759135843599,-153.0,0.00019305,2]
[388376501,1759135843610,-153.0,0.00019305,2]
[388376502,1759135843620,-153.0,0.00019305,2]
[388376503,1759135843630,-153.0,0.00019305,2]
[388376504,1759135843640,-153.0,0.00019305,2]
[388376505,1759135843650,-150.75,0.00019305,2]
[388376506,1759135843661,-153.0,0.00019319,2]
[388376507,1759135843671,-153.0,0.00019319,2]
[388376508,1759135843681,-153.0,0.00019319,2]
[388376509,1759135843691,-153.0,0.00019319,2]
[388376510,1759135843702,-153.0,0.00019319,2]
[388376511,1759135843712,-153.0,0.00019319,2]
[388376512,1759135843723,-153.0,0.00019319,2]
[388376513,1759135843733,-153.0,0.00019319,2]
[388376514,1759135843744,-153.0,0.00019319,2]
[388376515,1759135843754,-153.0,0.00019319,2]
[388376516,1759135843764,-153.0,0.00019319,2]
[388376517,1759135843774,-153.0,0.00019319,2]
[388376518,1759135843783,-153.0,0.00019319,2]
[388376519,1759135843794,-153.0,0.00019319,2]
[388376520,1759135843804,-153.0,0.00019319,2]
[388376521,1759135843814,-153.0,0.00019319,2]
[388376522,1759135843825,-153.0,0.00019319,2]
[388376523,1759135843835,-153.0,0.00019319,2]
[388376524,1759135843851,-153.0,0.00019319,2]
[388376525,1759135843862,-153.0,0.00019319,2]
[388376526,1759135843874,-153.0,0.00019319,2]
[388376527,1759135843884,-153.0,0.00019319,2]
[388376528,1759135843895,-153.0,0.00019319,2]
[388376529,1759135843906,-153.0,0.00019319,2]
[388376530,1759135844453,-153.0,0.00019319,2]
[388376531,1759135844463,-153.0,0.00019319,2]
[388376532,1759135844473,-153.0,0.00019319,2]
[388376533,1759135844482,-153.0,0.00019319,2]
[388376534,1759135844492,-153.0,0.00019319,2]
[388376535,1759135844502,-153.0,0.00019319,2]
[388376536,1759135844512,-153.0,0.00019319,2]
[388376537,1759135844521,-153.0,0.00019319,2]
[388376538,1759135844531,-153.0,0.00019319,2]
[388376539,1759135844540,-153.0,0.00019319,2]
[388376540,1759135844549,-153.0,0.00019319,2]
[388376541,1759135844559,-153.0,0.00019319,2]
[388376542,1759135844568,-153.0,0.00019319,2]
[388376543,1759135844578,-153.0,0.00019319,2]
[388376544,1759135844587,-153.0,0.00019319,2]
[388376545,1759135844597,-153.0,0.00019319,2]
[388376546,1759135844607,-153.0,0.00019319,2]
[388376547,1759135844616,-153.0,0.00019319,2]
[388376548,1759135844626,-153.0,0.00019319,2]
[388376549,1759135844636,-153.0,0.00019319,2]
[388376550,1759135844646,-153.0,0.00019319,2]
[388376551,1759135844655,-153.0,0.00019319,2]
[388376552,1759135844665,-153.0,0.00019319,2]
[388376553,1759135844674,-153.0,0.00019319,2]
[388376554,1759135844684,-153.0,0.00019319,2]
[388376555,1759135844693,-153.0,0.00019319,2]
[388376556,1759135844702,-153.0,0.00019319,2]
[388376557,1759135844711,-153.0,0.00019319,2]
[388376558,1759135844721,-153.0,0.00019319,2]
[388376559,1759135844730,-153.0,0.00019319,2]
[388376560,1759135844739,-153.0,0.00019319,2]
[388376561,1759135844748,-153.0,0.00019319,2]
[388376562,1759135844757,-153.0,0.00019319,2]
[388376563,1759135844767,-153.0,0.00019319,2]
[388376564,1759135844776,-153.0,0.00019319,2]
[388376565,1759135844785,-153.0,0.00019319,2]
[388376566,1759135844794,-153.0,0.00019319,2]
[388376567,1759135844803,-153.0,0.00019319,2]
[388376568,1759135844813,-153.0,0.00019319,2]
[388376569,1759135844823,-153.0,0.00019319,2]
[388376570,1759135844832,-153.0,0.00019319,2]
[388376571,1759135844841,-153.0,0.00019319,2]
[388376572,1759135844851,-153.0,0.00019319,2]
[388376573,1759135844861,-153.0,0.00019319,2]
[388376574,1759135844871,-153.0,0.00019319,2]
[388376575,1759135844881,-153.0,0.00019319,2]
[388376576,1759135844890,-153.0,0.00019319,2]
[388376577,1759135844900,-153.0,0.00019319,2]
[388376578,1759135844910,-153.0,0.00019319,2]
[388376579,1759135844919,-153.0,0.00019319,2]
[388376580,1759135844928,-153.0,0.00019319,2]
[388376581,1759135844938,-153.0,0.00019319,2]
[388376582,1759135844947,-153.0,0.00019319,2]
[388376583,1759135844957,-153.0,0.00019319,2]
[388376584,1759135844966,-153.0,0.00019319,2]
[388376585,1759135844975,-153.0,0.00019319,2]
[388376586,1759135844984,-153.0,0.00019319,2]
[388376587,1759135844993,-153.0,0.00019319,2]
[388376588,1759135845002,-153.0,0.00019319,2]
[388376589,1759135845012,-155.0,0.00019319,2]
[388376590,1759135845022,-155.0,0.00019319,2]
[388376591,1759135845031,-155.0,0.00019319,2]
[388376592,1759135845041,-155.0,0.00019319,2]
[388376593,1759135845050,-155.0,0.00019319,2]
[388376594,1759135845060,-155.0,0.00019319,2]
[388376595,1759135845069,-155.0,0.00019319,2]
[388376596,1759135845079,-155.0,0.00019319,2]
[388376597,1759135845088,-155.0,0.00019319,2]
[388376598,1759135845097,-155.0,0.00019319,2]
[388376599,1759135845111,-155.0,0.00019319,2]
[388376600,1759135845121,-155.0,0.00019319,2]
[388376601,1759135845130,-155.0,0.00019319,2]
[388376602,1759135845140,-155.0,0.00019319,2]
[388376603,1759135845150,-155.0,0.00019319,2]
[388376604,1759135845161,-155.0,0.00019319,2]
[388376605,1759135845170,-155.0,0.00019319,2]
[388376606,1759135845182,-155.0,0.00019319,2]
[388376607,1759135845192,-155.0,0.00019319,2]
[388376608,1759135845201,-155.0,0.00019319,2]
[388376609,1759135845210,-155.0,0.00019319,2]
[388376610,1759135845222,-155.0,0.00019319,2]
[388376611,1759135845232,-155.0,0.00019319,2]
[388376612,1759135845241,-155.0,0.00019319,2]
[388376613,1759135845251,-155.0,0.00019319,2]
[388376614,1759135845263,-155.0,0.00019319,2]
[388376615,1759135845272,-155.0,0.00019319,2]
[388376616,1759135845282,-155.0,0.00019319,2]
[388376617,1759135845293,-155.0,0.00019319,2]
[388376619,1759135845302,-155.0,0.00019319,2]
[388376620,1759135845312,-155.0,0.00019319,2]
[388376621,1759135845322,-155.0,0.00019319,2]
[388376622,1759135845332,-155.0,0.00019319,2]
[388376623,1759135845341,-155.0,0.00019319,2]
[388376624,1759135845351,-155.0,0.00019319,2]
[388376625,1759135845360,-155.0,0.00019319,2]
[388376626,1759135845370,-155.0,0.00019319,2]
[388376627,1759135845379,-155.0,0.00019319,2]
[388376628,1759135845390,-153.0,0.00019319,2]
[388376629,1759135845399,-153.0,0.00019319,2]
[388376630,1759135845409,-1941.98683126,0.00019328,2]
[388376631,1759135845418,-150.0,0.00019333,4]
[388376632,1759135845429,-1548.17503073,0.00019351,7]
[388376636,1759135846749,-1003.41372954,0.00019351,7]
[388376637,1759135846906,-538.69,0.00019351,7]
[388376638,1759135847083,176.29506621,0.00015732,2]
[388376639,1759135847194,-2069.60559997,0.00017414,2]
[388376640,1759135847206,-615.3,0.00017414,2]
[388376641,1759135847232,-2604.56440003,0.00017414,2]
[388376642,1759135847241,-5289.47,0.00017688,2]
[388376643,1759135847253,-5089.83510045,0.00017962,2]
[388376644,1759135865957,500.0,0.00015731,2]
[388376647,1759135928991,173.28,9.291e-05,2]
[388376648,1759135999282,2000.0,0.00025313,120]
[388376649,1759136033332,331.2532,0.00015731,2]
[388376655,1759136597213,2000.0,0.00025414,120]
[388376659,1759136693713,3967.25908835,0.00019,30]
[388376660,1759136772490,172.3,0.00013924,2]
[388376662,1759136832178,312.59217723,8.651e-05,2]
[388376663,1759136832215,401.70782277,8.651e-05,2]
[388376664,1759136832401,714.3,9.106e-05,2]
[388376665,1759136832609,714.3,9.562e-05,2]
[388376666,1759136832824,714.3,0.00010017,2]
[388376667,1759136833041,714.3,0.00010472,2]
[388376668,1759136833253,714.3,0.00010928,2]
[388376669,1759136833469,714.3,0.00011383,2]
[388376670,1759136834248,436.19894473,0.00011838,2]
[388376671,1759136834272,278.10105527,0.00011838,2]
[388376672,1759136834484,714.3,0.00012294,2]
[388376673,1759136834545,714.3,0.00012749,2]
[388376674,1759136834757,714.3,0.00013204,2]
[388376675,1759136834884,714.3,0.0001366,2]
[388376676,1759136835015,174.4609154,0.00014115,2]
[388376677,1759136835038,539.8390846,0.00014115,2]
[388376678,1759136835242,714.3,0.0001457,2]
[388376679,1759136837424,-167.11486872,0.00015026,2]
[388376680,1759136840547,-153.72,0.00015026,2]
[388376681,1759136842333,-185.21222327,0.00015026,2]
[388376682,1759136848170,-208.25290801,0.00015026,2]
[388376683,1759136848308,-500.0,0.00015481,2]
[388376692,1759136855329,-163.87,0.00015481,2]
[388376695,1759136905823,158.26,0.00025453,120]
[388376697,1759136960935,-50.43,0.00015481,2]
[388376698,1759136960961,-714.3,0.00015936,2]
[388376699,1759136960986,-714.3,0.00016391,2]
[388376700,1759136961009,-714.3,0.00016847,2]
[388376701,1759136961032,-158.26,0.00016969,2]
[388376702,1759136961055,-176.85,0.00017019,2]
[388376703,1759136961080,-500.0,0.00017029,2]
[388376704,1759136961102,-341.57578412,0.00017029,2]
[388376705,1759136961125,-640.06,0.0001707,2]
[388376706,1759136961147,-227.0,0.000171,2]
[388376707,1759136961168,-2287.688077,0.00017114,2]
[388376708,1759136961190,-272.32948069,0.000172,2]
[388376709,1759136961211,-2075.0207178,0.0001725,2]
[388376710,1759136961233,-300.0,0.00017299,2]
[388376711,1759136961254,-300.0,0.000173,2]
[388376712,1759136961275,-2000.0,0.000173,2]
[388376713,1759136961296,-714.3,0.00017302,2]
[388376714,1759136961317,-254.18,0.0001735,2]
[388376715,1759136961338,-1200.0,0.00017417,2]
[388376716,1759136961359,-300.0,0.00017418,2]
[388376717,1759136961393,-300.0,0.00017418,2]
[388376718,1759136961425,-759.40594039,0.00017418,2]
[388376719,1759136963292,-1240.59405961,0.00017418,2]
[388376720,1759136963317,-2000.0,0.00017418,2]
[388376721,1759136963340,-233.41729687,0.00017418,2]
[388376722,1759136963364,-192.78,0.00017418,2]
[388376723,1759136963388,-272.32948067,0.00017733,2]
[388376724,1759136963412,-2000.0,0.000178,2]
[388376725,1759136963435,-405.0,0.00017999,2]
[388376726,1759136963459,-150.0,0.00018,2]
[388376727,1759136963482,-150.0,0.00018,2]
[388376728,1759136963512,-150.0,0.00018,2]
[388376729,1759136963535,-150.0,0.00018,2]
[388376730,1759136963561,-150.0,0.00018,2]
[388376731,1759136963586,-150.0,0.00018,2]
[388376732,1759136963610,-267.99113572,0.00018,2]
[388376733,1759136963633,-150.0,0.00018,2]
[388376734,1759136963657,-150.0,0.00018,2]
[388376735,1759136963679,-150.0,0.00018,2]
[388376736,1759136963702,-150.0,0.00018,2]
[388376737,1759136963725,-235.67557806,0.00018056,2]
[388376738,1759136963750,-417.0,0.00018092,2]
[388376739,1759136963778,-272.32948067,0.00018265,2]
[388376740,1759136963802,-201.27105758,0.00018275,2]
[388376741,1759136963831,-500.0,0.00018275,2]
[388376742,1759136963862,-500.0,0.00018275,2]
[388376743,1759136963884,-400.2733501,0.00018275,2]
[388376744,1759136963909,-500.0,0.00018275,2]
[388376745,1759136963934,-500.0,0.00018275,2]
[388376746,1759136963957,-500.0,0.00018275,2]
[388376747,1759136963990,-500.0,0.00018275,2]
[388376748,1759136964013,-500.0,0.00018275,2]
[388376749,1759136964040,-500.0,0.00018275,2]
[388376750,1759136964070,-500.0,0.00018275,2]
[388376751,1759136964098,-500.0,0.00018275,2]
[388376752,1759136964124,-361.33856072,0.00018275,2]
[388376753,1759136964333,-138.66143928,0.00018275,2]
[388376754,1759136964359,-438.97619687,0.00018275,2]
[388376755,1759136964387,-500.0,0.00018275,2]
[388376756,1759136964412,-500.0,0.00018275,2]
[388376757,1759136964438,-500.0,0.00018275,2]
[388376758,1759136964466,-500.0,0.00018275,2]
[388376759,1759136964493,-500.0,0.00018275,2]
[388376760,1759136964523,-500.0,0.00018275,2]
[388376761,1759136964555,-500.0,0.00018275,2]
[388376762,1759136964581,-500.0,0.00018275,2]
[388376763,1759136964607,-500.0,0.00018275,2]
[388376764,1759136964632,-500.0,0.00018275,2]
[388376765,1759136964657,-500.0,0.00018275,2]
[388376766,1759136964682,-500.0,0.00018275,2]
[388376767,1759136964706,-500.0,0.00018275,2]
[388376768,1759136965293,-500.0,0.00018275,2]
[388376769,1759136965317,-500.0,0.00018275,2]
[388376770,1759136965341,-500.0,0.00018275,2]
[388376771,1759136965364,-500.0,0.00018275,2]
[388376772,1759136965391,-500.0,0.00018275,2]
[388376773,1759136965412,-500.0,0.00018275,2]
[388376774,1759136965435,-500.0,0.00018275,2]
[388376775,1759136965458,-500.0,0.00018275,2]
[388376776,1759136965480,-500.0,0.00018275,2]
[388376777,1759136965503,-500.0,0.00018275,2]
[388376778,1759136965525,-500.0,0.00018275,2]
[388376779,1759136965547,-500.0,0.00018275,2]
[388376780,1759136965570,-500.0,0.00018275,2]
[388376781,1759136965592,-500.0,0.00018275,2]
[388376782,1759136965614,-500.0,0.00018275,2]
[388376783,1759136965637,-422.36236385,0.00018275,2]
[388376784,1759136965851,-77.63763615,0.00018275,2]
[388376785,1759136965878,-500.0,0.00018275,2]
[388376786,1759136965903,-500.0,0.00018275,2]
[388376787,1759136965928,-500.0,0.00018275,2]
[388376788,1759136965953,-500.0,0.00018275,2]
[388376789,1759136965976,-500.0,0.00018275,2]
[388376790,1759136965999,-500.0,0.00018275,2]
[388376791,1759136966022,-500.0,0.00018275,2]
[388376792,1759136966047,-524.10621819,0.00018275,2]
[388376793,1759136966073,-500.0,0.00018275,2]
[388376794,1759136966095,-500.0,0.00018275,2]
[388376795,1759136966118,-600.0,0.00018275,2]
[388376796,1759136966140,-500.0,0.00018275,2]
[388376797,1759136966162,-500.0,0.00018275,2]
[388376798,1759136966185,-500.0,0.00018275,2]
[388376799,1759136966207,-500.0,0.00018275,2]
[388376800,1759136966229,-500.0,0.00018275,2]
[388376801,1759136966251,-2384.08150827,0.00018276,2]
[388376802,1759136966273,-223.0,0.0001828,2]
[388376803,1759136966294,-1200.0,0.00018361,2]
[388376804,1759136966315,-300.0,0.00018361,2]
[388376805,1759136966336,-151.0,0.00018365,2]
[388376806,1759136966357,-151.0,0.00018365,2]
[388376807,1759136966378,-151.0,0.00018365,2]
[388376808,1759136966399,-151.0,0.00018365,2]
[388376809,1759136966420,-151.0,0.00018365,2]
[388376810,1759136966443,-151.0,0.00018365,2]
[388376811,1759136966463,-500.0,0.00018365,2]
[388376812,1759136966484,-200.0,0.00018365,2]
[388376813,1759136966505,-151.0,0.00018365,2]
[388376814,1759136966527,-151.0,0.00018365,2]
[388376815,1759136966550,-500.0,0.00018365,2]
[388376816,1759136966573,-151.0,0.00018365,2]
[388376817,1759136966595,-132.17463739,0.00018365,2]
[388376818,1759136968238,-18.82536261,0.00018365,2]
[388376819,1759136968262,-500.0,0.00018365,2]
[388376820,1759136968286,-151.0,0.00018365,2]
[388376821,1759136968309,-151.0,0.00018365,2]
[388376822,1759136968339,-500.0,0.00018365,2]
[388376823,1759136968364,-151.0,0.00018365,2]
[388376824,1759136968389,-500.0,0.00018365,2]
[388376825,1759136968412,-151.0,0.00018365,2]
[388376826,1759136968436,-151.0,0.00018365,2]
[388376827,1759136968461,-151.0,0.00018365,2]
[388376828,1759136968485,-151.0,0.00018365,2]
[388376829,1759136968509,-288.89,0.00018365,2]
[388376830,1759136968533,-151.0,0.00018365,2]
[388376831,1759136968557,-151.0,0.00018365,2]
[388376832,1759136968580,-151.0,0.00018365,2]
[388376833,1759136968604,-151.0,0.00018365,2]
[388376834,1759136968627,-500.0,0.00018365,2]
[388376835,1759136968650,-151.0,0.00018365,2]
[388376836,1759136968672,-500.0,0.00018365,2]
[388376837,1759136968695,-151.0,0.00018365,2]
[388376838,1759136968718,-227.74,0.00018365,2]
[388376839,1759136968740,-200.0,0.00018365,2]
[388376840,1759136968762,-151.0,0.00018365,2]
[388376841,1759136968792,-151.0,0.00018365,2]
[388376842,1759136968815,-151.0,0.00018365,2]
[388376843,1759136968838,-151.0,0.00018365,2]
[388376844,1759136968862,-151.0,0.00018365,2]
[388376845,1759136968886,-151.0,0.00018365,2]
[388376846,1759136968910,-151.0,0.00018365,2]
[388376847,1759136968933,-151.0,0.00018365,2]
[388376848,1759136968956,-151.0,0.00018365,2]
[388376849,1759136968979,-151.0,0.00018365,2]
[388376850,1759136969001,-151.0,0.00018365,2]
[388376851,1759136969024,-151.0,0.00018365,2]
[388376852,1759136969046,-151.0,0.00018365,2]
[388376853,1759136969070,-151.0,0.00018365,2]
[388376854,1759136969093,-151.0,0.00018365,2]
[388376855,1759136969117,-151.0,0.00018365,2]
[388376856,1759136969140,-500.0,0.00018373,2]
[388376857,1759136969163,-500.0,0.00018373,2]
[388376858,1759136969187,-500.0,0.00018373,2]
[388376859,1759136969216,-500.0,0.00018373,2]
[388376860,1759136969240,-500.0,0.00018373,2]
[388376861,1759136969269,-500.0,0.00018373,2]
[388376862,1759136969293,-500.0,0.00018373,2]
[388376863,1759136969318,-500.0,0.00018373,2]
[388376864,1759136969342,-500.0,0.00018373,2]
[388376865,1759136969365,-436.29486277,0.00018375,2]
[388376866,1759136969389,-2449.24977462,0.00018376,2]
[388376868,1759136981066,-6932.0,0.00018376,2]
[388376870,1759137031699,-152.01,0.00018365,2]
[388376871,1759137031709,-150.45,0.00018366,2]
[388376873,1759137031719,-151.37,0.00018366,2]
[388376874,1759137031730,-250.0,0.00018366,2]
[388376876,1759137031740,-152.1,0.00018368,2]
[388376877,1759137031750,-152.35,0.00018368,2]
[388376878,1759137031760,-832.7752501,0.00018369,2]